bitfinex/quotes_SOLUSD_20240906
["timestamp","ask_amount","ask_price","bid_price","bid_amount"]
[1725649282378,7.9687,125.5,125.42,19.9321]
[1725649282776,9.32777036,125.52,125.42,19.9321]
[1725649282777,7.9693,125.49,125.43,7.9722]
[1725649283196,9.75128772,125.55,125.41,50.0]
[1725649283369,7.9668,125.53,125.47,7.9699]
[1725649283572,36.03438772,125.57,125.46,19.9255]
[1725649283864,282.4459,125.6,125.45,50.0]
[1725649283865,260.3,125.6,125.45,50.0]
[1725649284082,19.9061,125.59,125.41,50.0]
[1725649284362,3.21279401,125.58,125.41,50.0]
[1725649284567,7.9655,125.55,125.49,7.9686]
[1725649284863,7.9655,125.55,125.44,39.8581]
[1725649284864,7.9643,125.57,125.5,7.9679]
[1725649285489,7.963,125.58,125.51,7.9674]
[1725649285701,7.9638,125.57,125.5,19.9187]
[1725649285992,29.65278772,125.62,125.5,19.9187]
[1725649286204,7.965,125.55,125.5,19.9187]
[1725649286360,39.8168,125.58,125.44,16.4494]
[1725649286564,39.8168,125.58,125.38,50.0]
[1725649286565,7.9695,125.48,125.41,7.9733]
[1725649286770,19.922,125.49,125.38,16.4494]
[1725649286972,3.20787769,125.48,125.38,16.4494]
[1725649287182,23.20787769,125.48,125.39,19.9365]
[1725649287380,20.0,125.48,125.39,19.9365]
[1725649287966,7.97,125.48,125.41,7.9737]
[1725649288165,20.0,125.47,125.38,16.4494]
[1725649288371,19.9214,125.5,125.38,16.4494]
[1725649288579,20.0,125.49,125.39,19.937]
[1725649288787,20.0,125.49,125.41,19.9335]
[1725649288788,7.9706,125.46,125.41,19.9335]
[1725649289088,20.0,125.45,125.41,27.9072]
[1725649289299,32.45164805,125.53,125.43,7.9724]
[1725649289300,7.9687,125.5,125.43,7.9724]
[1725649289590,19.9113,125.56,125.42,1.59411467]
[1725649289772,7.9707,125.46,125.41,45.0]
[1725649289976,39.8287,125.54,125.39,19.9376]
[1725649290183,7.9725,125.44,125.38,24.4251]
[1725649290379,7.9727,125.43,125.38,16.4494]
[1725649290583,7.972,125.44,125.38,16.4494]
[1725649290786,7.972,125.44,125.38,24.4251]
[1725649290993,20.0,125.43,125.38,24.4251]
[1725649291191,20.0,125.43,125.33,35.7455]
[1725649291403,7.9764,125.37,125.31,14.3087]
[1725649291697,19.9313,125.44,125.32,7.9795]
[1725649291698,20.0,125.36,125.32,7.9795]
[1725649291867,20.0,125.36,125.32,19.9475]
[1725649292072,20.0,125.43,125.32,19.9475]
[1725649292300,7.9751,125.39,125.33,7.9788]
[1725649292468,20.0,125.38,125.32,1.59540063]
[1725649292674,27.9726,125.43,125.37,7.9763]
[1725649292888,19.9252,125.47,125.38,7.9757]
[1725649293082,59.762,125.5,125.39,7.9749]
[1725649293280,7.9712,125.46,125.39,7.9749]
[1725649293491,7.9699,125.48,125.42,7.9731]
[1725649293691,7.9704,125.47,125.41,7.9737]
[1725649294877,7.9694,125.48,125.42,7.9731]
[1725649296084,7.9686,125.5,125.43,7.9719]
[1725649296281,6.3907,125.54,125.44,19.9289]
[1725649296473,7.9682,125.5,125.44,27.9003]
[1725649296802,7.9675,125.51,125.45,7.9709]
[1725649296971,7.9669,125.52,125.44,21.52281136]
[1725649297361,19.9116,125.56,125.44,19.9289]
[1725649297617,7.9669,125.52,125.46,7.9704]
[1725649298088,7.9695,125.48,125.41,19.9337]
[1725649298294,7.9695,125.48,125.4,6.0481]
[1725649298295,3.20787769,125.55,125.4,6.0481]
[1725649298481,7.97,125.47,125.4,6.0481]
[1725649298676,7.9694,125.48,125.42,7.9727]
[1725649299071,20.0,125.47,125.4,25.9832]
[1725649299479,27.9705,125.47,125.41,7.9738]
[1725649299679,20.0,125.46,125.4,25.9832]
[1725649299995,20.0,125.49,125.42,19.9323]
[1725649300176,20.0,125.49,125.42,27.9053]
[1725649300177,7.9696,125.48,125.42,27.9053]
[1725649300677,20.0,125.47,125.44,7.9717]
[1725649301098,20.0,125.48,125.44,7.9717]
[1725649301613,20.0,125.48,125.45,45.0]
[1725649301792,19.9116,125.56,125.48,7.9693]
[1725649301996,7.9673,125.52,125.46,44.3751]
[1725649302212,7.9673,125.52,125.47,45.0]
[1725649302390,7.9673,125.52,125.47,52.9699]
[1725649302595,7.9664,125.53,125.47,52.9699]
[1725649302798,7.9657,125.54,125.48,7.9689]
[1725649303007,7.9657,125.54,125.49,45.0]
[1725649303600,6.4234,125.58,125.49,45.0]
[1725649303601,7.9651,125.55,125.49,45.0]
[1725649303913,7.9631,125.58,125.53,7.9661]
[1725649304123,7.9631,125.58,125.52,7.9666]
[1725649304293,7.9631,125.58,125.53,45.0]
[1725649304614,7.9651,125.55,125.49,14.4733]
[1725649304916,7.9662,125.53,125.49,6.5046]
[1725649305125,7.9651,125.55,125.49,6.5046]
[1725649305293,23.11417769,125.59,125.49,26.4259]
[1725649305614,7.9657,125.54,125.49,26.4259]
[1725649305816,27.9662,125.53,125.49,6.5046]
[1725649306199,7.9669,125.52,125.47,7.9698]
[1725649306616,20.0,125.51,125.46,16.4791]
[1725649306914,7.9676,125.51,125.46,24.4497]
[1725649307095,39.916,125.53,125.46,24.4497]
[1725649307096,20.0,125.5,125.46,24.4497]
[1725649307423,7.967,125.52,125.46,24.4497]
[1725649307614,20.0,125.51,125.47,7.97]
[1725649307810,19.9072,125.59,125.46,18.07265235]
[1725649308201,7.9647,125.56,125.51,7.9673]
[1725649308405,7.9649,125.55,125.5,7.9679]
[1725649308610,7.9645,125.56,125.51,52.9673]
[1725649309109,29.65388772,125.62,125.51,45.0]
[1725649309308,7.9625,125.59,125.52,1.59287697]
[1725649309514,19.8977,125.65,125.55,19.911]
[1725649309827,7.9618,125.6,125.55,27.8758]
[1725649310019,19.8999,125.63,125.55,19.911]
[1725649310203,7.9618,125.6,125.55,27.8755]
[1725649310526,19.8999,125.63,125.55,19.911]
[1725649310728,7.9618,125.6,125.56,45.0]
[1725649310938,7.9618,125.6,125.55,27.8759]
[1725649311106,19.8984,125.64,125.56,52.964]
[1725649311521,7.9618,125.6,125.56,45.0]
[1725649311699,19.8984,125.64,125.56,52.9642]
[1725649311900,37.96031145,125.68,125.57,1.59245731]
[1725649311901,7.9587,125.65,125.57,1.59245731]
[1725649312228,7.9568,125.68,125.62,7.9599]
[1725649312410,19.8896,125.7,125.56,45.0]
[1725649312613,7.9581,125.66,125.6,7.9613]
[1725649312833,19.8923,125.68,125.58,19.9067]
[1725649313015,7.9587,125.65,125.59,45.0]
[1725649313324,7.9594,125.64,125.59,52.9623]
[1725649313530,7.9599,125.63,125.58,19.9067]
[1725649313737,7.9599,125.63,125.55,19.9112]
[1725649313738,20.0,125.63,125.55,19.9112]
[1725649313907,7.9609,125.62,125.56,52.9638]
[1725649314104,19.8953,125.66,125.56,52.9638]
[1725649314105,27.9612,125.61,125.56,52.9638]
[1725649314299,20.0,125.61,125.56,45.0]
[1725649314704,20.0,125.65,125.56,45.0]
[1725649314932,7.9613,125.61,125.56,52.9642]
[1725649315126,20.0,125.6,125.56,52.9642]
[1725649315507,7.9634,125.58,125.54,21.3581]
[1725649315925,7.9643,125.56,125.54,15.1071]
[1725649316316,7.9649,125.55,125.5,14.2286]
[1725649316532,19.9084,125.58,125.5,6.2606]
[1725649316726,20.0,125.54,125.5,6.2606]
[1725649317102,20.0,125.54,125.5,14.2285]
[1725649317306,20.0,125.54,125.5,6.2606]
[1725649317609,7.9628,125.59,125.53,7.9661]
[1725649318127,20.0,125.58,125.53,7.9661]
[1725649318326,20.0,125.58,125.54,45.0]
[1725649318631,260.3,125.68,125.54,45.0]
[1725649318830,7.9599,125.63,125.57,27.872]
[1725649319021,7.9599,125.63,125.58,45.0]
[1725649319214,7.9605,125.62,125.57,19.9085]
[1725649319625,7.96,125.63,125.57,19.9085]
[1725649319851,7.9583,125.66,125.6,7.9612]
[1725649320021,7.9587,125.65,125.6,7.9612]
[1725649320341,7.9594,125.64,125.59,19.9047]
[1725649320512,36.06598772,125.69,125.58,52.9624]
[1725649320513,7.9599,125.63,125.58,45.0]
[1725649320936,7.9587,125.65,125.58,71.2534]
[1725649321114,286.7049,125.73,125.6,19.9037]
[1725649321316,7.9559,125.7,125.64,7.9587]
[1725649321837,19.8889,125.7,125.58,6.3465]
[1725649322008,39.7739,125.72,125.58,6.3465]
[1725649322009,3.20787769,125.69,125.58,6.3465]
[1725649322215,7.9623,125.6,125.54,27.8787]
[1725649322631,20.0,125.59,125.53,22.9795]
[1725649322944,4.009,125.68,125.53,22.9795]
[1725649322945,7.9644,125.56,125.53,22.9795]
[1725649323107,19.9051,125.6,125.53,16.633]
[1725649323108,20.0,125.55,125.53,16.633]
[1725649323430,39.7958,125.65,125.53,16.633]
[1725649323431,19.9002,125.63,125.53,16.633]
[1725649323605,7.9619,125.6,125.54,7.9654]
[1725649323810,20.0,125.59,125.54,7.9654]
[1725649324223,7.9612,125.61,125.54,19.9128]
[1725649324414,19.8956,125.66,125.56,19.9098]
[1725649324619,41.76972292,125.68,125.56,19.9098]
[1725649324815,1.98522292,125.68,125.58,26.389]
[1725649325142,7.9595,125.64,125.58,34.3517]
[1725649325444,266.62353585,125.71,125.61,7.961]
[1725649325445,7.9581,125.66,125.61,7.961]
[1725649325646,7.9578,125.67,125.62,61.3232]
[1725649325820,7.9578,125.67,125.62,69.2835]
[1725649326724,19.8844,125.73,125.62,81.2237]
[1725649327028,7.9585,125.66,125.62,61.3232]
[1725649327225,7.9585,125.66,125.62,16.3232]
[1725649327844,7.9573,125.67,125.62,16.3232]
[1725649328314,7.9573,125.67,125.62,24.2836]
[1725649328520,19.8908,125.69,125.62,16.3232]
[1725649328929,7.9585,125.66,125.62,16.3232]
[1725649329522,20.0,125.65,125.62,16.3232]
[1725649330020,39.7625,125.75,125.65,7.9585]
[1725649330225,7.9549,125.71,125.66,52.9579]
[1725649330438,9.32777036,125.74,125.64,19.8975]
[1725649330938,9.32777036,125.74,125.64,27.8562]
[1725649331123,7.9556,125.7,125.65,52.9585]
[1725649331325,7.9556,125.7,125.64,19.8975]
[1725649331326,20.0,125.73,125.64,19.8975]
[1725649331527,7.9557,125.7,125.65,52.9581]
[1725649331747,20.0,125.69,125.65,52.9581]
[1725649332042,20.0,125.69,125.67,6.4763]
[1725649332745,19.8845,125.73,125.67,6.4763]
[1725649332746,20.0,125.72,125.67,6.4763]
[1725649333115,7.9565,125.69,125.67,6.4763]
[1725649333417,7.9584,125.66,125.63,6.6451]
[1725649333829,7.9575,125.67,125.63,6.6451]
[1725649334317,7.9582,125.66,125.63,6.6451]
[1725649334519,7.9588,125.65,125.63,6.6451]
[1725649334816,27.9588,125.65,125.63,6.6451]
[1725649335025,7.9568,125.68,125.63,14.6045]
[1725649335330,7.9572,125.68,125.63,26.5444]
[1725649335532,20.0,125.67,125.63,26.5444]
[1725649335843,20.0,125.67,125.63,6.6451]
[1725649336051,7.9598,125.63,125.62,16.3232]
[1725649336524,27.9598,125.63,125.62,16.3232]
[1725649336933,20.0,125.63,125.59,6.5368]
[1725649337144,20.0,125.65,125.59,6.5368]
[1725649338139,20.0,125.65,125.59,26.4423]
[1725649338448,7.9592,125.64,125.59,26.4423]
[1725649338647,7.9587,125.65,125.6,7.9612]
[1725649338944,20.0,125.64,125.6,7.9612]
[1725649339247,20.0,125.64,125.61,19.9019]
[1725649339460,7.9586,125.65,125.61,19.9019]
[1725649339744,7.9586,125.65,125.59,6.5368]
[1725649339745,7.9571,125.68,125.63,7.9593]
[1725649339958,20.0,125.67,125.63,7.9593]
[1725649340139,27.9574,125.67,125.62,72.8614]
[1725649341120,20.0,125.67,125.62,64.9011]
[1725649341325,7.9556,125.7,125.65,7.9585]
[1725649341634,7.9549,125.71,125.66,19.8943]
[1725649341944,7.9555,125.7,125.66,19.8943]
[1725649342252,29.63478772,125.74,125.65,15.3911]
[1725649342444,29.63478772,125.74,125.65,35.2868]
[1725649342627,29.63478772,125.74,125.66,7.9578]
[1725649342957,7.9552,125.71,125.66,7.9578]
[1725649343156,7.9552,125.71,125.67,7.9571]
[1725649343448,19.8835,125.74,125.67,27.8503]
[1725649343449,7.9544,125.72,125.67,27.8503]
[1725649344049,19.8857,125.72,125.66,6.301]
[1725649344522,7.9571,125.68,125.66,6.301]
[1725649344723,9.75128772,125.73,125.65,15.3911]
[1725649344724,19.8888,125.7,125.65,15.3911]
[1725649344924,7.9579,125.66,125.65,15.3911]
[1725649345134,20.0,125.66,125.62,14.3062]
[1725649345338,20.0,125.66,125.63,19.8995]
[1725649345623,29.63658772,125.73,125.63,19.8995]
[1725649345624,7.9558,125.7,125.63,19.8995]
[1725649345950,27.9561,125.69,125.64,7.9588]
[1725649346165,20.0,125.68,125.64,7.9588]
[1725649346445,27.9567,125.68,125.64,7.9588]
[1725649346652,20.0,125.68,125.64,7.9588]
[1725649346823,20.0,125.68,125.65,52.9584]
[1725649347443,7.955,125.71,125.66,7.9577]
[1725649347948,9.75128772,125.76,125.65,45.0]
[1725649348149,9.75128772,125.76,125.62,6.3457]
[1725649348150,39.7721,125.72,125.62,6.3457]
[1725649348451,7.9597,125.64,125.62,6.3457]
[1725649348633,19.8935,125.67,125.61,15.1311]
[1725649348833,7.9605,125.62,125.61,15.1311]
[1725649349034,27.9605,125.62,125.61,15.1311]
[1725649349555,20.0,125.62,125.56,15.1007]
[1725649349733,20.0,125.67,125.59,19.9054]
[1725649350051,7.9598,125.63,125.59,19.9054]
[1725649350226,20.0,125.68,125.59,19.9054]
[1725649350428,7.959,125.65,125.6,7.9617]
[1725649350650,23.10359401,125.69,125.61,19.9019]
[1725649350837,19.8908,125.69,125.61,19.9019]
[1725649351031,7.958,125.66,125.63,6.4336]
[1725649352255,20.0,125.65,125.63,6.4336]
[1725649352628,4.04422542,125.85,125.63,6.4336]
[1725649352629,39.7582,125.76,125.64,15.0895]
[1725649352855,39.7708,125.73,125.64,15.0895]
[1725649353065,19.8891,125.7,125.59,41.4281]
[1725649353255,7.9579,125.67,125.61,7.9611]
[1725649353426,19.8891,125.7,125.59,41.4281]
[1725649353646,7.9573,125.68,125.62,7.9601]
[1725649353966,20.0,125.67,125.62,7.9601]
[1725649354183,7.9593,125.64,125.59,21.5231]
[1725649354469,7.9609,125.62,125.59,15.0895]
[1725649354653,20.0,125.61,125.59,15.0895]
[1725649355246,27.9587,125.65,125.59,34.995]
[1725649355549,20.0,125.65,125.61,19.9024]
[1725649355870,19.8865,125.72,125.64,7.9586]
[1725649355871,7.9565,125.69,125.64,7.9586]
[1725649356055,19.8865,125.72,125.65,7.9584]
[1725649356252,7.955,125.71,125.66,7.9578]
[1725649356449,7.955,125.71,125.67,7.9572]
[1725649357165,3.85762798,125.74,125.67,19.893]
[1725649357166,7.9543,125.72,125.67,19.893]
[1725649357394,7.955,125.71,125.67,19.893]
[1725649357576,7.9555,125.7,125.66,24.4931]
[1725649357954,7.9555,125.7,125.66,16.5354]
[1725649358355,7.9556,125.7,125.66,16.5354]
[1725649358554,3.85762798,125.74,125.66,36.4299]
[1725649358776,23.73782798,125.76,125.67,7.9569]
[1725649359449,20.0,125.75,125.67,7.9569]
[1725649359844,7.953,125.74,125.69,7.9559]
[1725649360446,7.9536,125.73,125.69,7.9559]
[1725649360649,7.9531,125.74,125.7,7.9553]
[1725649360842,7.9531,125.74,125.68,19.8912]
[1725649361172,7.9531,125.74,125.69,7.9558]
[1725649361976,19.8825,125.74,125.66,16.5354]
[1725649362276,65.0,125.73,125.66,16.5354]
[1725649362451,7.9556,125.7,125.66,24.4931]
[1725649362651,20.0,125.69,125.66,24.4931]
[1725649362973,20.0,125.69,125.66,16.5354]
[1725649363346,20.0,125.69,125.63,6.4336]
[1725649363347,27.9565,125.69,125.63,6.4336]
[1725649363653,20.0,125.68,125.64,19.8978]
[1725649363849,20.0,125.68,125.67,7.9573]
[1725649364051,20.0,125.68,125.63,46.2314]
[1725649364052,19.882,125.75,125.68,7.9566]
[1725649364249,7.9536,125.73,125.68,19.8916]
[1725649364548,19.88,125.76,125.68,27.8478]
[1725649364760,7.954,125.73,125.68,27.8478]
[1725649365778,20.0,125.72,125.68,27.8478]
[1725649366350,20.0,125.72,125.69,7.9559]
[1725649366562,20.0,125.72,125.65,19.8957]
[1725649366759,27.9543,125.72,125.68,7.9566]
[1725649368383,20.0,125.72,125.69,7.956]
[1725649368553,20.0,125.72,125.7,15.845]
[1725649370981,27.9546,125.72,125.7,15.845]
[1725649371488,7.9548,125.71,125.7,15.845]
[1725649371689,20.0,125.71,125.7,15.845]
[1725649376184,3.85762798,125.78,125.7,15.845]
[1725649376368,7.9525,125.75,125.71,7.9544]
[1725649376709,7.9514,125.77,125.73,7.9535]
[1725649377789,7.9504,125.78,125.74,7.9526]
[1725649377990,7.9504,125.78,125.74,52.9526]
[1725649378194,28.97263743,125.82,125.75,19.8805]
[1725649379004,19.8733,125.8,125.72,19.8843]
[1725649379195,39.7442,125.81,125.7,15.845]
[1725649379397,7.9539,125.73,125.7,15.845]
[1725649379584,20.0,125.72,125.7,15.845]
[1725649379777,20.0,125.75,125.7,15.845]
[1725649380474,20.0,125.78,125.7,15.845]
[1725649380670,39.7442,125.81,125.7,15.845]
[1725649381076,3.85762798,125.8,125.7,15.845]
[1725649381287,7.9543,125.72,125.67,6.488]
[1725649381597,7.9547,125.72,125.67,14.4448]
[1725649381897,19.8794,125.76,125.67,14.4448]
[1725649382097,7.9573,125.67,125.66,15.9445]
[1725649382290,7.9586,125.65,125.63,6.1955]
[1725649382474,39.7743,125.71,125.61,15.8143]
[1725649382475,7.9605,125.62,125.61,15.8143]
[1725649382672,7.9605,125.62,125.5,44.24115957]
[1725649382673,20.0,125.62,125.57,15.8143]
[1725649382877,20.0,125.61,125.57,15.8143]
[1725649383375,7.9612,125.61,125.57,15.8143]
[1725649383594,20.0,125.6,125.57,15.8143]
[1725649383794,20.0,125.6,125.57,23.7777]
[1725649384201,20.0,125.62,125.58,19.9069]
[1725649384403,7.9568,125.68,125.63,7.9597]
[1725649384702,19.884,125.73,125.62,19.9001]
[1725649384915,23.73712798,125.76,125.64,19.8969]
[1725649385505,7.9556,125.7,125.65,23.516]
[1725649386075,19.8836,125.74,125.65,15.5575]
[1725649386492,5.55591071,125.76,125.67,7.9573]
[1725649386802,5.55591071,125.76,125.69,7.956]
[1725649386803,7.953,125.74,125.69,7.956]
[1725649387007,7.9528,125.75,125.7,7.9553]
[1725649387213,19.3314702,125.78,125.68,71.4485]
[1725649387214,21.57538273,125.78,125.68,71.4485]
[1725649387516,7.9543,125.72,125.68,6.5579]
[1725649387894,3.85762798,125.79,125.7,7.9551]
[1725649388096,3.85762798,125.79,125.68,26.4484]
[1725649388398,7.9523,125.75,125.71,7.9547]
[1725649388980,7.9515,125.77,125.73,7.9534]
[1725649389183,7.9519,125.76,125.7,19.8876]
[1725649389487,19.8735,125.8,125.73,7.9534]
[1725649389488,7.9505,125.78,125.73,7.9534]
[1725649389693,7.951,125.77,125.72,7.9541]
[1725649389884,7.9517,125.76,125.72,7.9541]
[1725649390200,1.69828273,125.82,125.73,7.9529]
[1725649390201,7.9504,125.78,125.73,7.9529]
[1725649390401,7.9491,125.8,125.75,7.9522]
[1725649390609,7.9491,125.8,125.76,7.9515]
[1725649390916,7.9486,125.81,125.76,7.9515]
[1725649391492,7.9486,125.81,125.77,7.951]
[1725649392096,7.9491,125.8,125.75,7.9521]
[1725649392523,9.10153743,125.84,125.76,45.0]
[1725649392708,23.71852798,125.88,125.76,45.0]
[1725649392907,23.71852798,125.88,125.74,17.4794458]
[1725649392908,7.9477,125.83,125.78,7.9499]
[1725649393103,7.9479,125.82,125.78,7.9499]
[1725649393424,5.24390945,125.87,125.79,7.9495]
[1725649393604,21.55918273,125.88,125.79,7.9495]
[1725649393605,19.8609,125.88,125.79,7.9495]
[1725649393990,5.24390945,125.87,125.79,7.9495]
[1725649394409,5.24390945,125.87,125.77,25.9871]
[1725649394617,5.24390945,125.87,125.78,52.9502]
[1725649394618,7.9477,125.83,125.78,52.9502]
[1725649394936,7.9486,125.81,125.77,33.9381]
[1725649395119,7.948,125.82,125.77,33.9381]
[1725649395292,19.8671,125.84,125.77,6.1102]
[1725649395499,7.9502,125.79,125.77,6.1102]
[1725649395697,7.9492,125.8,125.77,6.1102]
[1725649396594,20.0,125.79,125.77,6.1102]
[1725649396918,20.0,125.79,125.74,15.8896]
[1725649397224,7.9497,125.79,125.74,15.8896]
[1725649397403,21.69828273,125.84,125.74,35.7709]
[1725649397404,39.8669,125.84,125.74,35.7709]
[1725649397600,7.9489,125.81,125.76,7.9511]
[1725649397799,7.9474,125.83,125.78,7.9502]
[1725649398318,7.9474,125.83,125.77,1.58985087]
[1725649398319,23.72022798,125.87,125.77,7.9505]
[1725649398625,19.8661,125.85,125.76,19.8782]
[1725649398808,7.9491,125.8,125.76,19.8782]
[1725649399017,7.9491,125.8,125.76,27.8296]
[1725649399403,7.9491,125.8,125.76,19.8782]
[1725649399622,7.9485,125.81,125.76,27.8296]
[1725649399821,27.9492,125.8,125.76,19.8782]
[1725649400539,20.0,125.8,125.74,15.8896]
[1725649400820,20.0,125.84,125.74,15.8896]
[1725649401024,45.0,125.83,125.74,15.8896]
[1725649401216,20.0,125.82,125.74,15.8896]
[1725649401526,20.0,125.82,125.7,16.4615]
[1725649401527,39.7428,125.81,125.7,16.4615]
[1725649401823,39.7428,125.81,125.63,50.0]
[1725649401824,7.9579,125.66,125.65,16.4615]
[1725649402012,27.9579,125.66,125.65,16.4615]
[1725649402210,7.9587,125.65,125.63,6.6511]
[1725649402442,7.9587,125.65,125.61,19.9025]
[1725649402804,7.9592,125.64,125.59,30.8795]
[1725649403218,20.0,125.66,125.59,30.8795]
[1725649403219,20.0,125.66,125.59,22.9172]
[1725649403515,20.0,125.67,125.6,19.903]
[1725649403721,39.8876,125.71,125.6,19.903]
[1725649404026,45.0,125.7,125.61,7.961]
[1725649404525,20.0,125.69,125.61,7.961]
[1725649404899,20.0,125.69,125.62,7.9605]
[1725649405124,7.958,125.66,125.62,7.9605]
[1725649405327,20.0,125.65,125.61,7.9611]
[1725649405703,20.0,125.65,125.62,7.9604]
[1725649406111,20.0,125.66,125.62,7.9604]
[1725649406319,7.9588,125.65,125.6,19.903]
[1725649406523,20.0,125.64,125.6,19.903]
[1725649407022,20.0,125.64,125.61,7.9611]
[1725649407330,19.8912,125.69,125.59,22.9172]
[1725649407513,7.9606,125.62,125.59,22.9172]
[1725649408328,19.8944,125.67,125.59,22.9172]
[1725649408530,19.8944,125.67,125.5,44.24115957]
[1725649408531,45.0,125.66,125.55,6.1034]
[1725649408825,7.9618,125.6,125.55,6.1034]
[1725649409133,7.9618,125.6,125.56,7.9641]
[1725649409134,20.0,125.59,125.56,7.9641]
[1725649409429,20.0,125.59,125.55,14.0678]
[1725649410319,20.0,125.59,125.56,7.964]
[1725649410744,20.0,125.59,125.58,7.963]
[1725649411028,7.9599,125.63,125.58,7.963]
[1725649411232,20.0,125.62,125.58,7.963]
[1725649411614,20.0,125.62,125.59,7.9621]
[1725649411826,20.0,125.63,125.59,7.9621]
[1725649412837,27.9599,125.63,125.58,27.8698]
[1725649413537,27.9599,125.63,125.59,7.9622]
[1725649413834,27.9599,125.63,125.6,19.904]
[1725649413835,20.0,125.63,125.6,19.904]
[1725649414037,20.0,125.68,125.61,7.9606]
[1725649414220,7.9584,125.66,125.61,7.9609]
[1725649414609,20.0,125.68,125.6,19.904]
[1725649414826,20.0,125.68,125.61,7.9609]
[1725649415230,7.9586,125.65,125.61,7.9609]
[1725649415437,20.0,125.64,125.61,7.9609]
[1725649415714,7.9574,125.67,125.63,7.9598]
[1725649416035,19.8862,125.72,125.64,19.8974]
[1725649416331,7.25935544,125.71,125.64,19.8974]
[1725649416835,7.9569,125.68,125.64,27.8563]
[1725649417015,7.9574,125.67,125.64,19.8974]
[1725649417410,7.9574,125.67,125.63,7.9597]
[1725649417841,7.9591,125.65,125.61,19.9014]
[1725649418016,7.9579,125.67,125.63,7.9596]
[1725649418410,20.0,125.66,125.63,7.9596]
[1725649418810,20.0,125.66,125.63,7.9593]
[1725649419235,20.0,125.69,125.63,26.373]
[1725649419412,7.9565,125.69,125.65,7.9586]
[1725649419611,20.0,125.68,125.65,7.9586]
[1725649419811,20.0,125.68,125.64,7.959]
[1725649420440,20.0,125.68,125.65,7.9585]
[1725649420632,7.9555,125.7,125.66,7.9578]
[1725649420819,7.9555,125.7,125.65,27.8544]
[1725649421140,7.9562,125.69,125.65,27.8544]
[1725649421340,27.50882563,125.73,125.63,6.4738]
[1725649421341,19.8874,125.71,125.63,6.4738]
[1725649421531,7.9605,125.62,125.59,41.0172]
[1725649421735,19.8973,125.65,125.59,21.112]
[1725649422032,7.9611,125.61,125.59,21.112]
[1725649422234,20.0,125.64,125.59,21.112]
[1725649422541,7.9611,125.61,125.59,21.112]
[1725649422746,27.9594,125.64,125.59,29.0739]
[1725649422916,7.9606,125.62,125.59,21.112]
[1725649423114,20.0,125.61,125.59,21.112]
[1725649424138,7.9599,125.63,125.6,1.005]
[1725649424337,7.9597,125.64,125.6,8.9666]
[1725649424538,20.0,125.63,125.6,1.005]
[1725649424718,7.9585,125.66,125.61,7.9607]
[1725649424914,7.9588,125.65,125.61,7.9607]
[1725649425325,7.9599,125.63,125.6,1.005]
[1725649425528,7.9593,125.64,125.6,1.005]
[1725649425745,7.9593,125.64,125.6,8.9666]
[1725649426123,7.9599,125.63,125.6,1.005]
[1725649426310,19.8937,125.67,125.6,8.9667]
[1725649426311,7.9593,125.64,125.6,8.9667]